fUST/lending_fUST_20251003
["ID","MTS","AMOUNT","RATE_DAILY","PERIOD"]
[388859093,1759430210276,-500.0,0.00019725,2]
[388859094,1759430210300,-500.0,0.00019725,2]
[388859095,1759430210324,-1104.27,0.00019725,2]
[388859096,1759430210349,-1174.44,0.00019725,2]
[388859097,1759430210374,-500.0,0.00019725,2]
[388859098,1759430210400,-604.09,0.00019725,2]
[388859099,1759430210424,-500.0,0.00019725,2]
[388859100,1759430210449,-831.07,0.00019725,2]
[388859101,1759430210475,-500.0,0.00019725,2]
[388859102,1759430210500,-1955.15,0.00019725,2]
[388859103,1759430210526,-500.0,0.00019725,2]
[388859104,1759430210551,-500.0,0.00019725,2]
[388859105,1759430210575,-537.49,0.00019725,2]
[388859106,1759430210599,-1183.79,0.00019725,2]
[388859107,1759430210622,-521.61,0.00019725,2]
[388859108,1759430210647,-500.0,0.00019725,2]
[388859109,1759430210671,-500.0,0.00019725,2]
[388859110,1759430210695,-332.16457654,0.00019725,2]
[388859111,1759430210720,-500.0,0.00019726,2]
[388859112,1759430210744,-500.0,0.00019726,2]
[388859113,1759430210769,-500.0,0.00019726,2]
[388859114,1759430210794,-1492.82,0.00019726,2]
[388859115,1759430210819,-500.0,0.00019726,2]
[388859116,1759430210848,-994.04,0.00019726,2]
[388859117,1759430210867,-500.0,0.00019726,2]
[388859118,1759430210889,-500.0,0.00019726,2]
[388859119,1759430210912,-500.0,0.00019726,2]
[388859120,1759430210939,-500.0,0.00019726,2]
[388859121,1759430210963,-500.0,0.00019726,2]
[388859122,1759430210987,-1003.0,0.00019726,2]
[388859123,1759430211014,-625.85,0.00019726,2]
[388859124,1759430211038,-500.0,0.00019726,2]
[388859125,1759430211064,-500.0,0.00019726,2]
[388859126,1759430211090,-850.68,0.00019726,2]
[388859127,1759430211114,-890.42,0.00019726,2]
[388859128,1759430211139,-500.0,0.00019726,2]
[388859129,1759430211162,-506.56,0.00019726,2]
[388859130,1759430211187,-613.25706748,0.00019726,2]
[388859131,1759430211212,-500.0,0.00019726,2]
[388859132,1759430211237,-500.0,0.00019726,2]
[388859133,1759430211262,-270.12991596,0.00019726,2]
[388859134,1759430211287,-895.12,0.00019726,2]
[388859135,1759430211312,-500.0,0.00019726,2]
[388859136,1759430211337,-500.0,0.00019726,2]
[388859137,1759430211362,-625.66,0.00019726,2]
[388859138,1759430211386,-993.11,0.00019726,2]
[388859139,1759430211412,-3245.29,0.00019726,2]
[388859140,1759430211437,-500.0,0.00019726,2]
[388859141,1759430211461,-500.0,0.00019726,2]
[388859142,1759430211488,-500.0,0.00019726,2]
[388859143,1759430211512,-1211.15,0.00019726,2]
[388859144,1759430211536,-622.36,0.00019726,2]
[388859145,1759430211560,-500.0,0.00019726,2]
[388859146,1759430211583,-500.0,0.00019726,2]
[388859147,1759430211607,-500.0,0.00019726,2]
[388859148,1759430211631,-1091.78,0.00019726,2]
[388859149,1759430211656,-833.09,0.00019726,2]
[388859150,1759430211682,-1221.63,0.00019726,2]
[388859151,1759430211706,-887.84,0.00019726,2]
[388859152,1759430211730,-536.56,0.00019726,2]
[388859153,1759430211754,-1187.3,0.00019726,2]
[388859154,1759430211780,-1417.77,0.00019726,2]
[388859155,1759430211805,-1128.07,0.00019726,2]
[388859156,1759430211830,-987.28,0.00019726,2]
[388859157,1759430211854,-628.74,0.00019726,2]
[388859158,1759430211881,-512.5916806,0.00019726,2]
[388859159,1759430211905,-603.74,0.00019726,2]
[388859160,1759430211931,-2477.68,0.00019726,2]
[388859161,1759430211958,-500.0,0.00019726,2]
[388859162,1759430211982,-3241.45,0.00019726,2]
[388859163,1759430212007,-1096.42,0.00019726,2]
[388859164,1759430212034,-2247.23,0.00019726,2]
[388859165,1759430212060,-3556.14,0.00019726,2]
[388859166,1759430212084,-500.0,0.00019726,2]
[388859167,1759430212108,-871.86,0.00019726,2]
[388859168,1759430212131,-500.0,0.00019726,2]
[388859169,1759430212154,-500.0,0.00019726,2]
[388859170,1759430212179,-737.53,0.00019726,2]
[388859171,1759430212203,-1664.31,0.00019726,2]
[388859172,1759430212227,-500.0,0.00019726,2]
[388859173,1759430212249,-553.09097659,0.00019726,2]
[388859174,1759430212273,-530.32,0.00019726,2]
[388859175,1759430212437,-796.85,0.00019726,2]
[388859176,1759430212461,-548.35,0.00019726,2]
[388859177,1759430212486,-500.0,0.00019726,2]
[388859178,1759430212511,-1075.31,0.00019726,2]
[388859179,1759430212534,-500.0,0.00019726,2]
[388859180,1759430212558,-500.0,0.00019726,2]
[388859181,1759430212581,-500.0,0.00019726,2]
[388859182,1759430212606,-544.5,0.00019726,2]
[388859183,1759430212632,-500.0,0.00019726,2]
[388859184,1759430212656,-252.04936206,0.00019726,2]
[388859185,1759430212680,-754.98,0.00019726,2]
[388859186,1759430212706,-818.1,0.00019726,2]
[388859187,1759430212731,-500.0,0.00019726,2]
[388859188,1759430212757,-500.0,0.00019726,2]
[388859189,1759430212781,-933.32,0.00019726,2]
[388859190,1759430212807,-1850.22,0.00019726,2]
[388859191,1759430212830,-1264.66,0.00019726,2]
[388859192,1759430212853,-638.82,0.00019726,2]
[388859193,1759430212876,-500.0,0.00019726,2]
[388859194,1759430212897,-289.56519595,0.00019726,2]
[388859195,1759430212916,-567.71053871,0.00019726,2]
[388859196,1759430212943,-500.0,0.00019726,2]
[388859197,1759430212969,-500.0,0.00019726,2]
[388859198,1759430212995,-1045.03,0.00019726,2]
[388859199,1759430213020,-500.0,0.00019726,2]
[388859200,1759430213047,-500.0,0.00019726,2]
[388859201,1759430213075,-1918.08,0.00019726,2]
[388859202,1759430213098,-500.0,0.00019726,2]
[388859203,1759430213128,-500.0,0.00019726,2]
[388859204,1759430213153,-593.4,0.00019726,2]
[388859205,1759430213182,-669.95,0.00019726,2]
[388859206,1759430213210,-500.0,0.00019726,2]
[388859207,1759430213236,-500.0,0.00019726,2]
[388859208,1759430213264,-1871.27,0.00019726,2]
[388859209,1759430213291,-5679.75,0.00019726,2]
[388859210,1759430213318,-500.0,0.00019726,2]
[388859211,1759430213344,-2457.16,0.00019726,2]
[388859212,1759430213372,-842.89,0.00019726,2]
[388859213,1759430213398,-2090.75,0.00019726,2]
[388859214,1759430213425,-1846.59,0.00019726,2]
[388859215,1759430213455,-500.0,0.00019726,2]
[388859216,1759430213483,-500.0,0.00019726,2]
[388859217,1759430213510,-500.0,0.00019726,2]
[388859218,1759430213538,-777.81,0.00019726,2]
[388859219,1759430213567,-9450.95,0.00019726,2]
[388859220,1759430213595,-500.0,0.00019726,2]
[388859221,1759430213622,-3888.25,0.00019726,2]
[388859222,1759430213649,-1478.58,0.00019726,2]
[388859223,1759430213674,-500.0,0.00019726,2]
[388859224,1759430213699,-500.0,0.00019726,2]
[388859225,1759430213723,-500.0,0.00019726,2]
[388859226,1759430213747,-500.0,0.00019726,2]
[388859227,1759430213773,-590.71,0.00019726,2]
[388859228,1759430213798,-500.0,0.00019726,2]
[388859229,1759430213825,-500.0,0.00019726,2]
[388859230,1759430213850,-500.0,0.00019726,2]
[388859231,1759430213875,-508.36,0.00019726,2]
[388859232,1759430213900,-1467.6,0.00019726,2]
[388859233,1759430213929,-500.0,0.00019726,2]
[388859234,1759430213956,-5528.62,0.00019726,2]
[388859235,1759430213983,-500.0,0.00019726,2]
[388859236,1759430214008,-500.0,0.00019726,2]
[388859237,1759430214032,-500.0,0.00019726,2]
[388859238,1759430214057,-500.0,0.00019726,2]
[388859239,1759430214082,-500.0,0.00019726,2]
[388859240,1759430214107,-500.0,0.00019726,2]
[388859241,1759430214132,-1228.37,0.00019726,2]
[388859242,1759430214157,-648.09,0.00019726,2]
[388859243,1759430214182,-500.0,0.00019726,2]
[388859244,1759430214209,-2339.89,0.00019726,2]
[388859245,1759430214231,-500.0,0.00019726,2]
[388859246,1759430214256,-500.0,0.00019726,2]
[388859247,1759430214280,-500.0,0.00019726,2]
[388859248,1759430214304,-26947.9329342,0.00019766,2]
[388859249,1759430214330,-500.0,0.00019786,2]
[388859250,1759430214354,-500.0,0.00019786,2]
[388859251,1759430214379,-500.0,0.00019786,2]
[388859252,1759430214402,-159.60269924,0.00019786,2]
[388859253,1759430214427,-345.68996228,0.0001993,2]
[388859254,1759430214451,-500.0,0.00019968,2]
[388859255,1759430214477,-500.0,0.00019968,2]
[388859256,1759430214503,-500.0,0.00019968,2]
[388859257,1759430214530,-151.0,0.00019994,2]
[388859258,1759430214555,-500.0,0.00019994,2]
[388859259,1759430214582,-286.201265,0.00019994,2]
[388859260,1759430214608,-500.0,0.00019994,2]
[388859261,1759430214633,-500.0,0.00019994,2]
[388859262,1759430214659,-656.16,0.00019994,2]
[388859263,1759430214685,-3133.55,0.00019994,2]
[388859264,1759430214709,-1037.0,0.00019994,2]
[388859265,1759430214733,-2118.08,0.00019994,2]
[388859266,1759430214757,-500.0,0.00019994,2]
[388859267,1759430214782,-836.7,0.00019994,2]
[388859268,1759430214807,-899.91,0.00019994,2]
[388859269,1759430214993,-826.35,0.00019994,2]
[388859270,1759430215024,-820.83,0.00019994,2]
[388859271,1759430215053,-500.0,0.00019994,2]
[388859272,1759430215082,-2288.84,0.00019994,2]
[388859273,1759430215110,-500.0,0.00019994,2]
[388859274,1759430215137,-1445.28,0.00019994,2]
[388859275,1759430215164,-1248.62,0.00019994,2]
[388859276,1759430215191,-500.0,0.00019994,2]
[388859277,1759430215217,-807.0,0.00019994,2]
[388859278,1759430215243,-1068.51,0.00019994,2]
[388859279,1759430215269,-552.13,0.00019994,2]
[388859280,1759430215294,-500.0,0.00019994,2]
[388859281,1759430215320,-1635.97,0.00019994,2]
[388859282,1759430215345,-500.0,0.00019994,2]
[388859283,1759430215370,-500.0,0.00019999,2]
[388859284,1759430215396,-403.54491226,0.00019999,2]
[388859285,1759430215423,-500.0,0.00019999,2]
[388859286,1759430215451,-500.0,0.00019999,2]
[388859287,1759430215480,-500.0,0.00019999,2]
[388859288,1759430215507,-500.0,0.00019999,2]
[388859289,1759430215533,-500.0,0.00019999,2]
[388859290,1759430215559,-721.34,0.00019999,2]
[388859291,1759430215585,-500.0,0.00019999,2]
[388859292,1759430215610,-2717.03,0.00019999,2]
[388859293,1759430215636,-627.33,0.00019999,2]
[388859294,1759430215663,-592.49,0.00019999,2]
[388859295,1759430215693,-623.21,0.00019999,2]
[388859296,1759430215720,-314.93,0.00019999,2]
[388859297,1759430215749,-500.0,0.00019999,2]
[388859298,1759430215775,-500.0,0.00019999,2]
[388859299,1759430215802,-500.0,0.00019999,2]
[388859300,1759430215827,-500.0,0.00019999,2]
[388859301,1759430215853,-500.0,0.00019999,2]
[388859302,1759430215879,-500.0,0.00019999,2]
[388859303,1759430215904,-500.0,0.00019999,2]
[388859304,1759430215932,-500.0,0.00019999,2]
[388859305,1759430215958,-653.45,0.00019999,2]
[388859306,1759430215986,-919.91,0.00019999,2]
[388859307,1759430216017,-500.0,0.00019999,2]
[388859308,1759430216043,-168.37795461,0.00019999,2]
[388859309,1759430216069,-500.0,0.00019999,2]
[388859310,1759430216092,-1820.11,0.00019999,2]
[388859311,1759430216118,-500.0,0.00019999,2]
[388859312,1759430216144,-500.0,0.00019999,2]
[388859313,1759430216168,-1026.85,0.00019999,2]
[388859314,1759430216196,-500.0,0.00019999,2]
[388859315,1759430216225,-3867.53,0.00019999,2]
[388859316,1759430216252,-500.0,0.00019999,2]
[388859317,1759430216279,-500.0,0.00019999,2]
[388859318,1759430216306,-500.0,0.00019999,2]
[388859319,1759430216334,-500.0,0.00019999,2]
[388859320,1759430216361,-1104.27,0.00019999,2]
[388859321,1759430216386,-1174.44,0.00019999,2]
[388859322,1759430216415,-500.0,0.00019999,2]
[388859323,1759430216440,-604.09,0.00019999,2]
[388859324,1759430216470,-500.0,0.00019999,2]
[388859325,1759430216502,-831.07,0.00019999,2]
[388859326,1759430216530,-500.0,0.00019999,2]
[388859327,1759430216556,-1955.15,0.00019999,2]
[388859328,1759430216581,-500.0,0.00019999,2]
[388859329,1759430216607,-500.0,0.00019999,2]
[388859330,1759430216633,-537.49,0.00019999,2]
[388859331,1759430216659,-1183.79,0.00019999,2]
[388859332,1759430216683,-521.61,0.00019999,2]
[388859333,1759430216707,-500.0,0.00019999,2]
[388859334,1759430216731,-500.0,0.00019999,2]
[388859335,1759430216756,-280.0,0.0002,2]
[388859336,1759430216782,-151.0,0.0002,2]
[388859337,1759430216807,-500.0,0.0002,2]
[388859338,1759430216832,-500.0,0.0002,2]
[388859339,1759430216855,-1492.82,0.0002,2]
[388859340,1759430216878,-500.0,0.0002,2]
[388859341,1759430216903,-994.04,0.0002,2]
[388859342,1759430216931,-500.0,0.0002,2]
[388859343,1759430216956,-500.0,0.0002,2]
[388859344,1759430216982,-500.0,0.0002,2]
[388859345,1759430217008,-500.0,0.0002,2]
[388859346,1759430217034,-500.0,0.0002,2]
[388859347,1759430217061,-1003.0,0.0002,2]
[388859348,1759430217086,-625.85,0.0002,2]
[388859349,1759430217110,-492.38496032,0.0002,2]
[388859350,1759430217138,-500.0,0.0002,2]
[388859351,1759430217167,-850.68,0.0002,2]
[388859352,1759430217197,-890.42,0.0002,2]
[388859353,1759430217228,-500.0,0.0002,2]
[388859354,1759430217265,-506.56,0.0002,2]
[388859355,1759430217303,-500.0,0.0002,2]
[388859356,1759430217332,-500.0,0.0002,2]
[388859357,1759430217360,-895.12,0.0002,2]
[388859358,1759430217390,-500.0,0.0002,2]
[388859359,1759430217419,-625.66,0.0002,2]
[388859360,1759430217448,-993.11,0.0002,2]
[388859361,1759430217479,-3245.29,0.0002,2]
[388859362,1759430217509,-500.0,0.0002,2]
[388859363,1759430217764,-500.0,0.0002,2]
[388859364,1759430217793,-500.0,0.0002,2]
[388859365,1759430217821,-1211.15,0.0002,2]
[388859366,1759430217847,-622.36,0.0002,2]
[388859367,1759430217872,-500.0,0.0002,2]
[388859368,1759430217898,-500.0,0.0002,2]
[388859369,1759430217925,-500.0,0.0002,2]
[388859370,1759430217956,-1091.78,0.0002,2]
[388859371,1759430217983,-833.09,0.0002,2]
[388859372,1759430218008,-1221.63,0.0002,2]
[388859373,1759430218037,-887.84,0.0002,2]
[388859374,1759430218069,-536.56,0.0002,2]
[388859375,1759430218094,-1187.3,0.0002,2]
[388859376,1759430218120,-1417.77,0.0002,2]
[388859377,1759430218145,-1128.07,0.0002,2]
[388859378,1759430218171,-987.28,0.0002,2]
[388859379,1759430218196,-628.74,0.0002,2]
[388859380,1759430218221,-603.74,0.0002,2]
[388859381,1759430218247,-2477.68,0.0002,2]
[388859382,1759430218271,-500.0,0.0002,2]
[388859383,1759430218296,-3241.45,0.0002,2]
[388859384,1759430218322,-1096.42,0.0002,2]
[388859385,1759430218347,-2247.23,0.0002,2]
[388859386,1759430218372,-3556.14,0.0002,2]
[388859387,1759430218398,-500.0,0.0002,2]
[388859388,1759430218423,-871.86,0.0002,2]
[388859389,1759430218450,-500.0,0.0002,2]
[388859390,1759430218478,-500.0,0.0002,2]
[388859391,1759430218505,-737.53,0.0002,2]
[388859392,1759430218531,-1664.31,0.0002,2]
[388859393,1759430218556,-287.87246912,0.0002,2]
[388859394,1759430218584,-530.32,0.0002,2]
[388859395,1759430218609,-796.85,0.0002,2]
[388859396,1759430218635,-548.35,0.0002,2]
[388859397,1759430218660,-538.56953893,0.0002,2]
[388859398,1759430218686,-1075.31,0.0002,2]
[388859399,1759430218718,-500.0,0.0002,2]
[388859400,1759430218746,-500.0,0.0002,2]
[388859401,1759430218772,-500.0,0.0002,2]
[388859402,1759430218799,-544.5,0.0002,2]
[388859403,1759430218824,-500.0,0.0002,2]
[388859404,1759430218850,-754.98,0.0002,2]
[388859405,1759430218875,-818.1,0.0002,2]
[388859406,1759430218900,-500.0,0.0002,2]
[388859407,1759430218932,-500.0,0.0002,2]
[388859408,1759430218957,-933.32,0.0002,2]
[388859409,1759430218983,-1850.22,0.0002,2]
[388859410,1759430219009,-1264.66,0.0002,2]
[388859411,1759430219039,-638.82,0.0002,2]
[388859412,1759430219065,-500.0,0.0002,2]
[388859413,1759430219091,-500.0,0.0002,2]
[388859414,1759430219118,-595.89902529,0.0002,2]
[388859415,1759430219143,-1045.03,0.0002,2]
[388859416,1759430219169,-500.0,0.0002,2]
[388859417,1759430219196,-500.0,0.0002,2]
[388859418,1759430219222,-1918.08,0.0002,2]
[388859419,1759430219247,-500.0,0.0002,2]
[388859420,1759430219271,-500.0,0.0002,2]
[388859421,1759430219298,-593.4,0.0002,2]
[388859422,1759430219323,-669.95,0.0002,2]
[388859423,1759430219348,-500.0,0.0002,2]
[388859424,1759430219372,-500.0,0.0002,2]
[388859425,1759430219400,-1871.27,0.0002,2]
[388859426,1759430219426,-5679.75,0.0002,2]
[388859427,1759430219454,-500.0,0.0002,2]
[388859428,1759430219480,-2457.16,0.0002,2]
[388859429,1759430219506,-842.89,0.0002,2]
[388859430,1759430219532,-2090.75,0.0002,2]
[388859431,1759430219558,-1846.59,0.0002,2]
[388859432,1759430219583,-500.0,0.0002,2]
[388859433,1759430219608,-500.0,0.0002,2]
[388859434,1759430219633,-500.0,0.0002,2]
[388859435,1759430219658,-777.81,0.0002,2]
[388859436,1759430219686,-9450.95,0.0002,2]
[388859437,1759430219712,-500.0,0.0002,2]
[388859438,1759430219738,-3888.25,0.0002,2]
[388859439,1759430219763,-1478.58,0.0002,2]
[388859440,1759430219789,-500.0,0.0002,2]
[388859441,1759430219814,-500.0,0.0002,2]
[388859442,1759430219839,-500.0,0.0002,2]
[388859443,1759430219863,-500.0,0.0002,2]
[388859444,1759430219889,-590.71,0.0002,2]
[388859445,1759430219914,-500.0,0.0002,2]
[388859446,1759430219944,-500.0,0.0002,2]
[388859447,1759430219971,-500.0,0.0002,2]
[388859448,1759430219997,-508.36,0.0002,2]
[388859449,1759430220025,-1467.6,0.0002,2]
[388859450,1759430220053,-500.0,0.0002,2]
[388859451,1759430220081,-4463.39704901,0.0002,2]
[388859469,1759430891239,1500.0,0.00016438,2]
[388859505,1759431032010,-355.59869616,0.00019078,2]
[388859512,1759431032064,-644.40130384,0.00019078,2]
[388859514,1759431032074,-187.91651242,0.00019078,2]
[388859516,1759431032083,-265.78218374,0.00019177,2]
[388859550,1759431038356,-34.21781626,0.00019177,2]
[388859551,1759431038366,-500.0,0.00019177,2]
[388859552,1759431038377,-329.74604589,0.00019177,2]
[388859553,1759431038387,-168.98860153,0.00019177,2]
[388859554,1759431038397,-259.69214449,0.00019177,2]
[388859556,1759431038407,-329.82851027,0.00019178,2]
[388859557,1759431038419,-170.17148973,0.00019178,2]
[388859558,1759431038429,-520.0,0.00019178,3]
[388859559,1759431038439,-364.74246737,0.00019178,2]
[388859560,1759431038451,-135.25753263,0.00019178,2]
[388859561,1759431038461,-364.74246737,0.00019178,2]
[388859562,1759431038477,-115.25753263,0.00019178,2]
[388859563,1759431038487,-714.46,0.00019178,2]
[388859564,1759431038497,-500.0,0.00019178,2]
[388859565,1759431038508,-500.0,0.00019178,2]
[388859566,1759431038518,-318.15398272,0.00019178,2]
[388859567,1759431038530,-181.84601728,0.00019178,2]
[388859568,1759431038540,-500.0,0.00019178,2]
[388859569,1759431038549,-500.0,0.00019178,2]
[388859570,1759431038559,-500.0,0.00019178,2]
[388859571,1759431038570,-500.0,0.00019178,2]
[388859572,1759431038580,-748.18,0.00019178,2]
[388859573,1759431038591,-500.0,0.00019178,2]
[388859574,1759431038600,-500.0,0.00019178,2]
[388859575,1759431038611,-286.21856836,0.00019178,2]
[388859576,1759431038621,-646.17,0.00019178,2]
[388859577,1759431038631,-500.0,0.00019178,2]
[388859578,1759431038641,-500.0,0.00019178,2]
[388859579,1759431038651,-500.0,0.00019178,2]
[388859580,1759431038662,-500.0,0.00019178,2]
[388859581,1759431038673,-819.94,0.00019178,2]
[388859582,1759431038684,-500.0,0.00019178,2]
[388859583,1759431038695,-500.0,0.00019178,2]
[388859584,1759431038706,-408.57160285,0.00019178,2]
[388859585,1759431038719,-368.17839715,0.00019178,2]
[388859586,1759431038729,-132.25968175,0.00019178,2]
[388859587,1759431038747,-367.74031825,0.00019178,2]
[388859588,1759431038758,-500.0,0.00019178,2]
[388859589,1759431038769,-500.0,0.00019178,2]
[388859590,1759431038780,-500.0,0.00019178,2]
[388859591,1759431038791,-500.65,0.00019178,2]
[388859592,1759431038801,-780.16,0.00019178,2]
[388859593,1759431038811,-500.0,0.00019178,2]
[388859594,1759431038826,-500.0,0.00019178,2]
[388859595,1759431038836,-828.37,0.00019178,2]
[388859596,1759431038846,-500.0,0.00019178,2]
[388859597,1759431038856,-500.0,0.00019178,2]
[388859598,1759431038867,-500.0,0.00019178,2]
[388859599,1759431038877,-500.0,0.00019178,2]
[388859600,1759431038887,-500.0,0.00019178,2]
[388859601,1759431038897,-500.0,0.00019178,2]
[388859602,1759431038907,-631.17,0.00019178,2]
[388859603,1759431038917,-25.47113576,0.00019178,2]
[388859604,1759431038930,-1272.90675034,0.00019178,2]
[388859616,1759431042239,-1079.0221139,0.00019178,2]
[388859617,1759431042249,-722.0,0.00019178,2]
[388859618,1759431042259,-500.0,0.00019178,2]
[388859619,1759431042269,-518.42,0.00019178,2]
[388859620,1759431042280,-1302.6,0.00019178,2]
[388859621,1759431042290,-500.0,0.00019178,2]
[388859622,1759431042299,-500.0,0.00019178,2]
[388859623,1759431042309,-500.0,0.00019178,2]
[388859624,1759431042319,-500.0,0.00019178,2]
[388859625,1759431042328,-532.35,0.00019178,2]
[388859626,1759431042340,-288.06817512,0.00019178,2]
[388859627,1759431042351,-211.93182488,0.00019178,2]
[388859628,1759431042361,-500.0,0.00019178,2]
[388859629,1759431042370,-500.0,0.00019178,2]
[388859630,1759431042380,-1592.6,0.00019178,2]
[388859631,1759431042390,-500.0,0.00019178,2]
[388859632,1759431042400,-8.99931735,0.00019178,2]
[388859633,1759431042416,-491.00068265,0.00019178,2]
[388859634,1759431042427,-16.34077724,0.00019178,2]
[388859635,1759431042439,-483.65922276,0.00019178,2]
[388859636,1759431042449,-77.14156414,0.00019178,2]
[388859715,1759431554545,1107.0,0.00025,30]
[388859716,1759431567170,1000.0,0.00018063,2]
[388859873,1759432232286,-748.14411,0.00018343,2]
[388859875,1759432232296,-1000.0,0.00018343,2]
[388859877,1759432232304,-1000.0,0.00018743,2]
[388859879,1759432232314,-1107.0,0.0001889,2]
[388859880,1759432232323,-164.42694835,0.00018973,2]
[388859881,1759432232332,-300.0,0.00018977,2]
[388859882,1759432232341,-1200.0,0.00018977,2]
[388859884,1759432232350,-183.71064644,0.00018977,2]
[388859886,1759432232359,-306.10384533,0.00018977,2]
[388859887,1759432232368,-7045.63999955,0.00018978,2]
[388859889,1759432232379,-1295.93775,0.00018978,2]
[388859891,1759432232390,-993.39393509,0.00018978,2]
[388859894,1759432232401,-1722.05130384,0.00018978,2]
[388859895,1759432232412,-670.9020678,0.00018978,2]
[388859916,1759432238277,-422.33,0.00018977,2]
[388859917,1759432238288,-500.0,0.00018977,2]
[388859918,1759432238297,-500.0,0.00018977,2]
[388859919,1759432238306,-90.34597889,0.00018977,2]
[388859920,1759432238318,-409.65402111,0.00018977,2]
[388859921,1759432238328,-500.0,0.00018977,2]
[388859922,1759432238337,-500.0,0.00018977,2]
[388859923,1759432238346,-500.0,0.00018977,2]
[388859924,1759432238356,-500.0,0.00018977,2]
[388859925,1759432238365,-500.0,0.00018977,2]
[388859926,1759432238375,-482.59878979,0.00018977,2]
[388859927,1759432238387,-17.40121021,0.00018977,2]
[388859928,1759432238396,-500.0,0.00018977,2]
[388859929,1759432238405,-500.0,0.00018977,2]
[388859930,1759432238415,-500.0,0.00018977,2]
[388859931,1759432238424,-12.41567308,0.00018977,2]
[388859932,1759432238436,-458.49616255,0.00018977,2]
[388859933,1759432238446,-292.56621122,0.00018977,2]
[388859934,1759432238456,-290.13304104,0.00018977,2]
[388859935,1759432238468,-500.0,0.00018977,2]
[388859936,1759432238480,-500.0,0.00018977,2]
[388859937,1759432238489,-150.12285973,0.00018977,2]
[388859938,1759432238502,-349.87714027,0.00018977,2]
[388859939,1759432238512,-230.20081592,0.00018977,2]
[388859940,1759432238522,-110.43071039,0.00018977,2]
[388859941,1759432238534,-402.52658363,0.00018977,2]
[388859942,1759432238545,-500.0,0.00018977,2]
[388859943,1759432238555,-185.94883405,0.00018977,2]
[388859944,1759432238566,-314.05116595,0.00018977,2]
[388859945,1759432238576,-500.0,0.00018977,2]
[388859946,1759432238587,-500.0,0.00018977,2]
[388859947,1759432238597,-500.0,0.00018977,2]
[388859948,1759432238607,-353.42564326,0.00018977,2]
[388859949,1759432238617,-155.94952228,0.00018977,2]
[388859950,1759432238627,-500.0,0.00018977,2]
[388859951,1759432238637,-500.0,0.00018977,2]
[388859952,1759432238648,-500.0,0.00018977,2]
[388859953,1759432238658,-500.0,0.00018977,2]
[388859954,1759432238668,-500.0,0.00018977,2]
[388859955,1759432238678,-500.0,0.00018977,2]
[388859956,1759432238687,-507.76137232,0.00018977,2]
[388859957,1759432238697,-500.0,0.00018977,2]
[388859958,1759432238707,-500.0,0.00018977,2]
[388859959,1759432238717,-500.0,0.00018977,2]
[388859960,1759432238727,-526.67769375,0.00018978,2]